[Event "IIFL Wealth 4th Mumbai Open"]
[Site "Mumbai"]
[Date "2019.01.01"]
[Round "3"]
[White "Makwana, Devam"]
[Black "Adarsh, Sanklecha"]
[Result "1-0"]
[ECO "C23"]
[WhiteElo "1617"]
[BlackElo "1414"]
[Annotator "NA RC"]
[PlyCount "45"]
[EventDate "2018.12.30"]
[EventType "swiss"]
[EventCountry "IND"]
[SourceTitle "playchess.com"]
[Source "ChessBase"]
[SourceQuality "1"]
[TimeControl "40/5400+30:1800+30"]

1. e4 {[%emt 0:00:00]} e5 {[%emt 0:00:00]} 2. Bc4 {[%emt 0:00:00]} Bc5 {[%emt 0:00:00]} 3. Nc3 {[%emt 0:00:00]} Nf6 {[%emt 0:00:00]} 4. d3 {[%emt 0:00:00]} Nc6 {[%emt 0:00:05]} 5. f4 {[%emt 0:00:24]} d6 {[%emt 0:00:09]} 6. Nf3 {[%emt 0:00:04]} Ng4 {[%emt 0:00:45]} 7. Ng5 {[%emt 0:00:57]} Nf2 {[%emt 0:10:00]} 8. Qh5 {[%emt 0:04:37]} g6 {[%emt 0:01:28]} 9. Bxf7+ {[%emt 0:00:07]} Kd7 {[%emt 0:05:23]} 10. Be6+ {[%emt 0:13:40]} Ke8 {[%emt 0:00:31]} 11. Qh6 {[%emt 0:00:34]} Bxe6 {[%emt 0:08:05]} 12. Nxe6 {[%emt 0:00:04]} Qe7 {[%emt 0:05:50]} 13. Nd5 {[%emt 0:01:08]} Qf7 {[%emt 0:04:15]} 14. Rf1 {[%emt 0:02:50]} Ng4 {[%emt 0:10:17]} 15. Qh3 {[%emt 0:00:10]} h5 {[%emt 0:00:46]} 16. Nexc7+ {[%emt 0:01:46]} Kd7 {[%emt 0:00:50]} 17. Nxa8 {[%emt 0:00:37]} Rxa8 {[%emt 0:00:16]} 18. Bd2 {[%emt 0:02:04]} exf4 {[%emt 0:02:17]} 19. Rxf4 {[%emt 0:00:32]} Qe6 {[%emt 0:05:34]} 20. O-O-O {[%emt 0:01:51]} Nd4 {[%emt 0:00:43]} 21. Rxg4 {[%emt 0:01:30]} Rc8 {[%emt 0:10:08]} 22. Rxg6 {[%emt 0:01:05]} Qxh3 {[%emt 0:00:54]} 23. gxh3 {[%emt 0:00:06]} 1-0

[Event "IIFL Wealth 4th Mumbai Open"]
[Site "Mumbai"]
[Date "2019.01.01"]
[Round "3"]
[White "Joel Paul G"]
[Black "Amrit, Raunak"]
[Result "0-1"]
[ECO "C70"]
[WhiteElo "1603"]
[BlackElo "1410"]
[Annotator "NA RC"]
[PlyCount "88"]
[EventDate "2018.12.30"]
[EventType "swiss"]
[EventCountry "IND"]
[SourceTitle "playchess.com"]
[Source "ChessBase"]
[SourceQuality "1"]
[TimeControl "40/5400+30:1800+30"]

1. e4 {[%emt 0:00:00]} e5 {[%emt 0:00:00]} 2. Nf3 {[%emt 0:00:00]} Nc6 {[%emt 0:00:00]} 3. Bb5 {[%emt 0:00:00]} a6 {[%emt 0:00:00]} 4. Ba4 {[%emt 0:00:00]} b5 {[%emt 0:00:00]} 5. Bb3 {[%emt 0:00:00]} Nf6 {[%emt 0:00:00]} 6. Qe2 {[%emt 0:00:00]} Bc5 {[%emt 0:00:03]} 7. c3 {[%emt 0:00:03]} O-O {[%emt 0:00:17]} 8. d3 {[%emt 0:00:13]} h6 {[%emt 0:00:09]} 9. Be3 {[%emt 0:00:06]} Ba7 {[%emt 0:00:33]} 10. O-O {[%emt 0:00:18]} d6 {[%emt 0:00:10]} 11. Nbd2 {[%emt 0:00:07]} Be6 {[%emt 0:00:07]} 12. a4 {[%emt 0:09:08]} Bxb3 {[%emt 0:02:11]} 13. Nxb3 {[%emt 0:00:02]} bxa4 {[%emt 0:00:10]} 14. Rxa4 {[%emt 0:00:51]} Qd7 {[%emt 0:00:15]} 15. Rfa1 {[%emt 0:02:08]} Bxe3 {[%emt 0:02:05]} 16. fxe3 {[%emt 0:02:27]} Rfb8 {[%emt 0:00:53]} 17. Nfd2 {[%emt 0:11:22]} Rb6 {[%emt 0:12:45]} 18. R1a3 {[%emt 0:12:16]} Qe8 {[%emt 0:06:50]} 19. Qd1 {[%emt 0:06:28]} Qc8 {[%emt 0:01:03]} 20. d4 {[%emt 0:10:24]} exd4 {[%emt 0:00:53]} 21. exd4 {[%emt 0:01:27]} Rbb8 {[%emt 0:16:38]} 22. Qe2 {[%emt 0:06:56]} Rb6 {[%emt 0:05:59]} 23. e5 {[%emt 0:08:41]} dxe5 {[%emt 0:00:20]} 24. dxe5 {[%emt 0:05:03]} Nh7 {[%emt 0:02:52]} 25. Nc4 {[%emt 0:03:32]} Rb5 {[%emt 0:01:06]} 26. Qe4 {[%emt 0:01:49]} Ne7 {[%emt 0:07:30]} 27. Nd4 {[%emt 0:02:14]} Ng5 {[%emt 0:01:42]} 28. Qe3 {[%emt 0:03:45]} Rbb8 {[%emt 0:05:04]} 29. Ra1 {[%emt 0:00:47]} Nd5 {[%emt 0:03:07]} 30. Qg3 {[%emt 0:03:37]} Nb6 {[%emt 0:01:12]} 31. Nc6 {[%emt 0:02:25]} Qe8 {[%emt 0:02:25]} 32. Nxb6 {[%emt 0:01:00]} Rxb6 {[%emt 0:00:11]} 33. Nb4 {[%emt 0:00:07]} Qd7 {[%emt 0:03:09]} 34. h4 {[%emt 0:02:12]} Ne4 {[%emt 0:01:22]} 35. Qf3 {[%emt 0:01:12]} f5 {[%emt 0:01:39]} 36. exf6 {[%emt 0:00:37]} Re8 {[%emt 0:00:14]} 37. fxg7 {[%emt 0:01:32]} Rg6 {[%emt 0:01:50]} 38. Rxa6 {[%emt 0:02:37]} Rg3 {[%emt 0:01:13]} 39. Rd1 {[%emt 0:02:30]} Qh3 {[%emt 0:02:08]} 40. Qf1 {[%emt 0:00:00]} Rxg7 {[%emt 0:00:00]} 41. Rd3 {[%emt 0:17:19]} Qxh4 {[%emt 0:03:36]} 42. Rh3 {[%emt 0:00:27]} Qxh3 {[%emt 0:00:12]} 43. Nd5 {[%emt 0:00:31]} Qh4 {[%emt 0:03:18]} 44. Qe2 {[%emt 0:01:43]} Nd6 {[%emt 0:00:42]} 0-1

[Event "IIFL Wealth 4th Mumbai Open"]
[Site "Mumbai"]
[Date "2019.01.01"]
[Round "3"]
[White "Bharadia Yash"]
[Black "Tanuj, Dayal"]
[Result "1-0"]
[ECO "B43"]
[WhiteElo "1584"]
[BlackElo "1803"]
[Annotator "NA RC"]
[PlyCount "73"]
[EventDate "2018.12.30"]
[EventType "swiss"]
[EventCountry "IND"]
[SourceTitle "playchess.com"]
[Source "ChessBase"]
[SourceQuality "1"]
[TimeControl "40/5400+30:1800+30"]

1. e4 {[%emt 0:00:00]} c5 {[%emt 0:00:00]} 2. Nf3 {[%emt 0:00:00]} e6 {[%emt 0:00:00]} 3. d4 {[%emt 0:00:00]} cxd4 {[%emt 0:00:00]} 4. Nxd4 {[%emt 0:00:00]} a6 {[%emt 0:00:00]} 5. Nc3 {[%emt 0:00:00]} Qc7 {[%emt 0:00:00]} 6. Bd3 {[%emt 0:00:03]} Bb4 {[%emt 0:01:24]} 7. Bd2 {[%emt 0:01:14]} Nc6 {[%emt 0:00:24]} 8. Nxc6 {[%emt 0:01:17]} bxc6 {[%emt 0:00:16]} 9. O-O {[%emt 0:00:09]} Nf6 {[%emt 0:05:22]} 10. Nb5 {[%emt 0:02:35]} axb5 {[%emt 0:01:47]} 11. Bxb4 {[%emt 0:00:12]} Bb7 {[%emt 0:03:47]} 12. Qf3 {[%emt 0:10:13]} c5 {[%emt 0:13:35]} 13. Bc3 {[%emt 0:00:41]} c4 {[%emt 0:00:18]} 14. Bxf6 {[%emt 0:00:29]} cxd3 {[%emt 0:03:24]} 15. Bxg7 {[%emt 0:01:51]} Rg8 {[%emt 0:00:09]} 16. Bc3 {[%emt 0:02:03]} dxc2 {[%emt 0:01:33]} 17. Qe3 {[%emt 0:05:21]} Qc4 {[%emt 0:13:31]} 18. f3 {[%emt 0:18:18]} b4 {[%emt 0:01:36]} 19. Bf6 {[%emt 0:02:02]} Rg6 {[%emt 0:01:16]} 20. e5 {[%emt 0:01:08]} Rc8 {[%emt 0:00:34]} 21. b3 {[%emt 0:05:15]} Qc3 {[%emt 0:07:33]} 22. Qxc3 {[%emt 0:00:28]} Rxc3 {[%emt 0:00:06]} 23. Kh1 {[%emt 0:14:07]} d5 {[%emt 0:01:27]} 24. Rac1 {[%emt 0:01:34]} d4 {[%emt 0:00:24]} 25. Rf2 {[%emt 0:05:28]} d3 {[%emt 0:01:05]} 26. Rd2 {[%emt 0:00:16]} Bd5 {[%emt 0:00:33]} 27. h4 {[%emt 0:05:11]} Kd7 {[%emt 0:00:32]} 28. Kg1 {[%emt 0:01:24]} Bxf3 {[%emt 0:01:50]} 29. Bg5 {[%emt 0:07:16]} Bd5 {[%emt 0:01:30]} 30. Rf2 {[%emt 0:02:36]} Kc6 {[%emt 0:01:34]} 31. Bd2 {[%emt 0:01:53]} Kb5 {[%emt 0:00:58]} 32. h5 {[%emt 0:05:57]} Rg4 {[%emt 0:01:38]} 33. h6 {[%emt 0:01:24]} Rc8 {[%emt 0:00:09]} 34. Kh2 {[%emt 0:01:36]} Rcg8 {[%emt 0:00:23]} 35. g3 {[%emt 0:03:49]} Rxg3 {[%emt 0:00:10]} 36. Rcf1 {[%emt 0:00:47]} R3g4 {[%emt 0:01:20]} 37. Bc1 {[%emt 0:01:11]} 1-0

[Event "IIFL Wealth 4th Mumbai Open"]
[Site "Mumbai"]
[Date "2019.01.01"]
[Round "3"]
[White "Pingale Shivraj"]
[Black "Vivaan, Vijay Saraogi"]
[Result "1-0"]
[ECO "B01"]
[WhiteElo "1580"]
[BlackElo "1290"]
[Annotator "NA RC"]
[PlyCount "129"]
[EventDate "2018.12.30"]
[EventType "swiss"]
[EventCountry "IND"]
[SourceTitle "playchess.com"]
[Source "ChessBase"]
[SourceQuality "1"]
[TimeControl "40/5400+30:1800+30"]

1. e4 {[%emt 0:00:00]} d5 {[%emt 0:00:00]} 2. exd5 {[%emt 0:00:00]} Nf6 {[%emt 0:00:00]} 3. d4 {[%emt 0:00:00]} Bg4 {[%emt 0:00:00]} 4. f3 {[%emt 0:00:00]} Bf5 {[%emt 0:00:00]} 5. c4 {[%emt 0:02:30]} e6 {[%emt 0:00:00]} 6. dxe6 {[%emt 0:00:29]} Nc6 {[%emt 0:00:05]} 7. Bd3 {[%emt 0:05:55]} fxe6 {[%emt 0:04:59]} 8. Bxf5 {[%emt 0:00:45]} exf5 {[%emt 0:00:08]} 9. Ne2 {[%emt 0:01:23]} Bb4+ {[%emt 0:01:12]} 10. Bd2 {[%emt 0:01:50]} Bxd2+ {[%emt 0:00:27]} 11. Qxd2 {[%emt 0:00:13]} O-O {[%emt 0:00:43]} 12. O-O {[%emt 0:00:31]} Re8 {[%emt 0:00:49]} 13. Nbc3 {[%emt 0:01:45]} Qd7 {[%emt 0:00:31]} 14. Rad1 {[%emt 0:00:57]} Rad8 {[%emt 0:00:44]} 15. b3 {[%emt 0:02:33]} h6 {[%emt 0:08:18]} 16. Rfe1 {[%emt 0:05:46]} Nh7 {[%emt 0:00:28]} 17. d5 {[%emt 0:05:56]} Ne5 {[%emt 0:00:34]} 18. Nd4 {[%emt 0:02:30]} Qf7 {[%emt 0:05:31]} 19. Qc2 {[%emt 0:07:09]} g6 {[%emt 0:00:24]} 20. Ne6 {[%emt 0:01:41]} Qf6 {[%emt 0:09:48]} 21. Nxd8 {[%emt 0:02:32]} Rxd8 {[%emt 0:00:12]} 22. f4 {[%emt 0:01:05]} Ng4 {[%emt 0:01:56]} 23. h3 {[%emt 0:00:49]} Qb6+ {[%emt 0:00:40]} 24. Kh1 {[%emt 0:00:38]} Nf2+ {[%emt 0:00:39]} 25. Kh2 {[%emt 0:00:12]} Nxd1 {[%emt 0:00:22]} 26. Qxd1 {[%emt 0:00:13]} Qf6 {[%emt 0:01:10]} 27. Qd3 {[%emt 0:01:29]} Qd6 {[%emt 0:02:17]} 28. Qe3 {[%emt 0:02:11]} Nf8 {[%emt 0:00:51]} 29. Nb5 {[%emt 0:01:09]} Qd7 {[%emt 0:01:41]} 30. Qc5 {[%emt 0:03:03]} Rc8 {[%emt 0:01:52]} 31. Re7 {[%emt 0:02:42]} Qd8 {[%emt 0:00:38]} 32. d6 {[%emt 0:00:32]} c6 {[%emt 0:01:45]} 33. Qe5 {[%emt 0:00:18]} Qxe7 {[%emt 0:00:43]} 34. dxe7 {[%emt 0:00:04]} cxb5 {[%emt 0:00:12]} 35. exf8=Q+ {[%emt 0:00:16]} Rxf8 {[%emt 0:00:13]} 36. Qxb5 {[%emt 0:00:11]} g5 {[%emt 0:00:15]} 37. fxg5 {[%emt 0:00:25]} hxg5 {[%emt 0:00:09]} 38. Qxb7 {[%emt 0:00:07]} Rf7 {[%emt 0:00:16]} 39. Qxf7+ {[%emt 0:00:45]} Kxf7 {[%emt 0:00:08]} 40. Kg3 {[%emt 0:00:00]} Kf6 {[%emt 0:00:00]} 41. c5 {[%emt 0:00:40]} Ke6 {[%emt 0:00:24]} 42. b4 {[%emt 0:00:03]} Kd5 {[%emt 0:00:08]} 43. h4 {[%emt 0:00:05]} f4+ {[%emt 0:00:39]} 44. Kg4 {[%emt 0:00:12]} gxh4 {[%emt 0:00:06]} 45. Kxf4 {[%emt 0:00:05]} Kc6 {[%emt 0:00:09]} 46. Kg4 {[%emt 0:00:07]} a5 {[%emt 0:00:07]} 47. a3 {[%emt 0:00:05]} axb4 {[%emt 0:00:16]} 48. axb4 {[%emt 0:00:04]} Kb5 {[%emt 0:00:01]} 49. Kxh4 {[%emt 0:00:07]} Kc6 {[%emt 0:00:01]} 50. g4 {[%emt 0:00:03]} Kb5 {[%emt 0:00:02]} 51. g5 {[%emt 0:00:08]} Kc6 {[%emt 0:00:03]} 52. g6 {[%emt 0:00:04]} Kb5 53. g7 {[%emt 0:00:02]} Kc6 {[%emt 0:00:10]} 54. g8=Q {[%emt 0:00:10]} Kb5 {[%emt 0:00:01]} 55. Qb8+ {[%emt 0:00:13]} Kc6 {[%emt 0:00:06]} 56. Qb6+ {[%emt 0:00:11]} Kd7 {[%emt 0:00:02]} 57. c6+ {[%emt 0:00:07]} Kd6 {[%emt 0:00:07]} 58. c7+ {[%emt 0:00:13]} Kd7 {[%emt 0:00:03]} 59. Qb7 {[%emt 0:00:35]} Kd6 {[%emt 0:00:03]} 60. c8=Q {[%emt 0:00:20]} Ke5 {[%emt 0:00:06]} 61. Qbd7 {[%emt 0:00:27]} Ke4 {[%emt 0:00:13]} 62. Qce8+ {[%emt 0:00:05]} Kf3 {[%emt 0:00:13]} 63. Qf5+ {[%emt 0:00:04]} Kg2 {[%emt 0:00:02]} 64. Qeg6+ {[%emt 0:00:06]} Kh2 {[%emt 0:00:09]} 65. Qh3# {[%emt 0:00:03]} 1-0

[Event "IIFL Wealth 4th Mumbai Open"]
[Site "Mumbai"]
[Date "2019.01.01"]
[Round "3"]
[White "Laddha, Shubh Jayesh"]
[Black "Samrat, Ghorai"]
[Result "0-1"]
[ECO "B40"]
[WhiteElo "1567"]
[BlackElo "1984"]
[Annotator "NA RC"]
[PlyCount "95"]
[EventDate "2018.12.30"]
[EventType "swiss"]
[EventCountry "IND"]
[SourceTitle "playchess.com"]
[Source "ChessBase"]
[SourceQuality "1"]
[TimeControl "40/5400+30:1800+30"]

1. e4 {[%emt 0:00:00]} c5 {[%emt 0:00:00]} 2. Nf3 {[%emt 0:00:00]} e6 {[%emt 0:00:00]} 3. d3 {[%emt 0:00:00]} Nc6 {[%emt 0:00:37]} 4. g3 {[%emt 0:00:00]} d6 {[%emt 0:00:23]} 5. Bg2 {[%emt 0:00:00]} e5 {[%emt 0:00:08]} 6. O-O {[%emt 0:02:25]} g6 {[%emt 0:00:08]} 7. Nbd2 {[%emt 0:02:13]} Bg7 {[%emt 0:01:24]} 8. Re1 {[%emt 0:03:07]} Be6 {[%emt 0:02:26]} 9. Nf1 {[%emt 0:13:25]} h6 {[%emt 0:00:26]} 10. Be3 {[%emt 0:04:26]} Nge7 {[%emt 0:01:04]} 11. Qd2 {[%emt 0:07:49]} f5 {[%emt 0:03:13]} 12. c3 {[%emt 0:16:24]} Qd7 {[%emt 0:05:46]} 13. Qe2 {[%emt 0:08:12]} O-O {[%emt 0:04:56]} 14. Bd2 {[%emt 0:05:27]} f4 {[%emt 0:01:52]} 15. gxf4 {[%emt 0:16:35]} exf4 {[%emt 0:00:08]} 16. Rad1 $19 {[%emt 0:01:59]} (16. h4 {might work better.}) 16... g5 {[%emt 0:08:06]} 17. d4 {[%emt 0:02:40]} Bh3 {[%emt 0:00:31]} 18. Bxh3 {[%emt 0:11:39]} Qxh3 {[%emt 0:00:06]} 19. Kh1 {[%emt 0:00:26]} Qh5 {[%emt 0:12:28]} 20. dxc5 {[%emt 0:02:17]} dxc5 {[%emt 0:02:23]} 21. Ng1 {[%emt 0:00:49]} g4 {[%emt 0:06:40]} 22. f3 {[%emt 0:00:22]} g3 {[%emt 0:00:17]} 23. Qg2 {[%emt 0:00:35]} Ne5 {[%emt 0:00:38]} 24. Qh3 {[%emt 0:00:31]} Qxh3 {[%emt 0:01:13]} 25. Nxh3 {[%emt 0:00:01]} Nxf3 {[%emt 0:00:16]} 26. Re2 {[%emt 0:00:06]} Rad8 {[%emt 0:07:00]} 27. hxg3 {[%emt 0:00:55]} fxg3 {[%emt 0:00:20]} 28. Nxg3 {[%emt 0:00:28]} Be5 {[%emt 0:00:30]} 29. Kg2 {[%emt 0:01:04]} Kh7 {[%emt 0:01:16]} 30. Rf2 {[%emt 0:00:30]} Nh4+ {[%emt 0:00:24]} 31. Kh2 {[%emt 0:00:18]} Rf3 {[%emt 0:01:24]} 32. Rxf3 {[%emt 0:00:41]} Nxf3+ {[%emt 0:00:37]} 33. Kg2 {[%emt 0:00:07]} Rxd2+ {[%emt 0:00:11]} 34. Rxd2 {[%emt 0:00:05]} Nxd2 {[%emt 0:00:04]} 35. Nf2 {[%emt 0:00:15]} Bxg3 {[%emt 0:00:38]} 36. Kxg3 {[%emt 0:00:05]} Nc6 {[%emt 0:00:58]} 37. Kf4 {[%emt 0:00:12]} Kg6 {[%emt 0:00:04]} 38. b3 {[%emt 0:00:52]} c4 {[%emt 0:00:49]} 39. b4 {[%emt 0:00:34]} Nb1 {[%emt 0:00:05]} 40. Nd1 {[%emt 0:00:00]} Kf6 {[%emt 0:00:00]} 41. a4 {[%emt 0:00:41]} h5 {[%emt 0:02:22]} 42. b5 {[%emt 0:00:19]} Ne5 {[%emt 0:00:22]} 43. a5 {[%emt 0:00:17]} h4 {[%emt 0:03:34]} 44. b6 {[%emt 0:02:16]} a6 {[%emt 0:00:45]} 45. Ne3 {[%emt 0:00:29]} Nxc3 {[%emt 0:00:07]} 46. Nd1 {[%emt 0:00:40]} Ng6+ {[%emt 0:00:14]} 47. Ke3 {[%emt 0:00:10]} Nxd1+ {[%emt 0:00:05]} 48. Kd4 0-1

[Event "IIFL Wealth 4th Mumbai Open"]
[Site "Mumbai"]
[Date "2019.01.01"]
[Round "3"]
[White "Vedant Nitin vekhande"]
[Black "Kothari, Swapnil"]
[Result "0-1"]
[ECO "B83"]
[WhiteElo "1564"]
[BlackElo "1870"]
[Annotator "NA RC"]
[PlyCount "180"]
[EventDate "2018.12.30"]
[EventType "swiss"]
[EventCountry "IND"]
[SourceTitle "playchess.com"]
[Source "ChessBase"]
[SourceQuality "1"]
[TimeControl "40/5400+30:1800+30"]

1. e4 {[%emt 0:00:00]} c5 {[%emt 0:00:31]} 2. Nf3 {[%emt 0:00:00]} d6 {[%emt 0:00:05]} 3. d4 {[%emt 0:00:00]} cxd4 {[%emt 0:00:05]} 4. Nxd4 {[%emt 0:00:00]} Nf6 {[%emt 0:00:06]} 5. Nc3 {[%emt 0:00:00]} Nc6 {[%emt 0:00:08]} 6. Be3 {[%emt 0:00:07]} e6 {[%emt 0:00:57]} 7. Be2 {[%emt 0:00:06]} Be7 {[%emt 0:00:08]} 8. O-O {[%emt 0:00:08]} O-O {[%emt 0:00:46]} 9. f4 {[%emt 0:01:25]} Bd7 {[%emt 0:00:35]} 10. Qe1 {[%emt 0:01:47]} Rc8 {[%emt 0:00:29]} 11. Rd1 {[%emt 0:00:38]} a6 {[%emt 0:01:35]} 12. Nxc6 {[%emt 0:03:51]} Bxc6 {[%emt 0:01:19]} 13. Bf3 {[%emt 0:04:23]} Qc7 {[%emt 0:02:58]} 14. Qf2 {[%emt 0:00:34]} b5 {[%emt 0:02:05]} 15. a3 {[%emt 0:00:57]} Qb7 {[%emt 0:10:21]} 16. e5 {[%emt 0:01:21]} dxe5 {[%emt 0:06:15]} 17. fxe5 {[%emt 0:00:42]} Ne4 {[%emt 0:00:38]} 18. Nxe4 {[%emt 0:01:18]} Bxe4 {[%emt 0:00:02]} 19. c3 {[%emt 0:00:10]} Bxf3 {[%emt 0:04:16]} 20. Qxf3 {[%emt 0:00:43]} Qc7 {[%emt 0:03:43]} 21. Bd4 {[%emt 0:09:44]} Bc5 {[%emt 0:01:34]} 22. Qe3 {[%emt 0:00:14]} Bxd4 {[%emt 0:02:49]} 23. cxd4 {[%emt 0:00:19]} Qb7 {[%emt 0:08:38]} 24. Qf3 {[%emt 0:01:32]} Qb6 {[%emt 0:01:35]} 25. Qf2 {[%emt 0:00:36]} Qb7 {[%emt 0:01:09]} 26. Qf3 {[%emt 0:06:27]} Qa7 {[%emt 0:01:17]} 27. Qf2 {[%emt 0:00:10]} Qe7 {[%emt 0:06:43]} 28. Rc1 {[%emt 0:03:19]} Rfd8 {[%emt 0:00:39]} 29. h3 {[%emt 0:02:10]} Rc7 {[%emt 0:03:59]} 30. Rxc7 {[%emt 0:01:27]} Qxc7 {[%emt 0:00:02]} 31. Rd1 {[%emt 0:00:14]} Qc4 {[%emt 0:01:20]} 32. Qd2 {[%emt 0:00:49]} h6 {[%emt 0:00:31]} 33. Qd3 {[%emt 0:00:40]} Qd5 {[%emt 0:01:02]} 34. Qf3 {[%emt 0:02:49]} Qd7 {[%emt 0:01:16]} 35. Kh2 {[%emt 0:00:36]} Qc7 {[%emt 0:06:14]} 36. Qc3 {[%emt 0:00:11]} Qd7 {[%emt 0:00:31]} 37. Qf3 {[%emt 0:01:31]} Qc7 {[%emt 0:02:31]} 38. Qc3 {[%emt 0:02:32]} Qb8 {[%emt 0:02:28]} 39. Qc6 {[%emt 0:01:37]} Rxd4 {[%emt 0:01:49]} 40. Rxd4 {[%emt 0:00:00]} Qxe5+ {[%emt 0:00:00]} 41. Kh1 {[%emt 0:00:43]} Qe1+ {[%emt 0:01:04]} 42. Kh2 {[%emt 0:00:17]} Qe5+ {[%emt 0:00:00]} 43. Kh1 {[%emt 0:00:02]} Qxd4 {[%emt 0:00:13]} 44. Qe8+ {[%emt 0:00:20]} Kh7 {[%emt 0:00:11]} 45. Qxf7 {[%emt 0:00:06]} Qxb2 {[%emt 0:06:03]} 46. Qxe6 {[%emt 0:00:20]} Qa1+ {[%emt 0:00:43]} 47. Kh2 {[%emt 0:00:14]} Qxa3 {[%emt 0:04:55]} 48. Qf5+ {[%emt 0:00:48]} Kg8 {[%emt 0:00:22]} 49. Qc8+ {[%emt 0:00:35]} Qf8 {[%emt 0:00:33]} 50. Qxa6 {[%emt 0:00:48]} Qb8+ {[%emt 0:00:08]} 51. g3 {[%emt 0:00:13]} b4 {[%emt 0:00:10]} 52. Qe6+ {[%emt 0:00:06]} Kh8 {[%emt 0:00:10]} 53. Qb3 {[%emt 0:00:19]} Qb6 {[%emt 0:00:28]} 54. Kg2 {[%emt 0:00:52]} Qc5 {[%emt 0:02:17]} 55. Kf3 {[%emt 0:01:14]} Qf5+ {[%emt 0:00:35]} 56. Kg2 {[%emt 0:00:16]} Qe4+ {[%emt 0:00:19]} 57. Kf2 {[%emt 0:00:09]} Qd4+ {[%emt 0:01:32]} 58. Kf3 {[%emt 0:00:11]} Qf6+ {[%emt 0:00:39]} 59. Ke4 {[%emt 0:01:05]} Qd6 {[%emt 0:04:10]} 60. h4 {[%emt 0:01:55]} Qd2 {[%emt 0:00:52]} 61. Qf7 {[%emt 0:01:33]} Qg2+ {[%emt 0:01:47]} 62. Kd4 {[%emt 0:00:20]} Qxg3 {[%emt 0:00:31]} 63. h5 {[%emt 0:00:14]} Qc3+ {[%emt 0:01:02]} 64. Ke4 {[%emt 0:00:37]} Qc2+ {[%emt 0:00:45]} 65. Kd4 {[%emt 0:00:27]} b3 {[%emt 0:00:14]} 66. Qe8+ {[%emt 0:00:26]} Kh7 {[%emt 0:00:09]} 67. Qg6+ {[%emt 0:00:04]} Qxg6 {[%emt 0:00:10]} 68. hxg6+ {[%emt 0:00:03]} Kxg6 {[%emt 0:00:06]} 69. Kc3 {[%emt 0:00:04]} h5 {[%emt 0:00:10]} 70. Kxb3 {[%emt 0:00:03]} h4 {[%emt 0:00:04]} 71. Kc3 {[%emt 0:00:04]} h3 {[%emt 0:00:03]} 72. Kd3 {[%emt 0:00:01]} h2 {[%emt 0:00:13]} 73. Ke3 {[%emt 0:00:02]} h1=R {[%emt 0:00:23]} 74. Ke4 {[%emt 0:00:06]} Rf1 {[%emt 0:00:17]} 75. Ke5 {[%emt 0:00:05]} Kf7 {[%emt 0:00:20]} 76. Ke4 {[%emt 0:00:03]} g5 {[%emt 0:00:11]} 77. Ke5 {[%emt 0:00:01]} g4 {[%emt 0:00:08]} 78. Ke4 {[%emt 0:00:02]} g3 {[%emt 0:00:03]} 79. Ke3 {[%emt 0:00:01]} g2 {[%emt 0:00:05]} 80. Ke4 {[%emt 0:00:11]} g1=R {[%emt 0:00:19]} 81. Kd5 {[%emt 0:00:04]} Rf6 {[%emt 0:00:13]} 82. Ke5 {[%emt 0:00:02]} Rg5+ {[%emt 0:00:05]} 83. Ke4 {[%emt 0:00:04]} Ra5 {[%emt 0:00:07]} 84. Kd4 {[%emt 0:00:08]} Rf4+ {[%emt 0:00:04]} 85. Ke3 {[%emt 0:00:06]} Rb4 {[%emt 0:00:02]} 86. Kd3 {[%emt 0:00:01]} Ra3+ {[%emt 0:00:08]} 87. Kc2 {[%emt 0:00:02]} Rh4 {[%emt 0:00:06]} 88. Kb2 {[%emt 0:00:18]} Rg3 {[%emt 0:00:09]} 89. Kc2 {[%emt 0:00:01]} Rh2+ {[%emt 0:00:07]} 90. Kd1 {[%emt 0:00:03]} Rg1# {[%emt 0:00:07]} 0-1

[Event "IIFL Wealth 4th Mumbai Open"]
[Site "Mumbai"]
[Date "2019.01.01"]
[Round "3"]
[White "Jain Adi"]
[Black "Abhinessh, S."]
[Result "0-1"]
[ECO "A37"]
[WhiteElo "1545"]
[BlackElo "1790"]
[Annotator "NA RC"]
[PlyCount "82"]
[EventDate "2018.12.30"]
[EventType "swiss"]
[EventCountry "IND"]
[SourceTitle "playchess.com"]
[Source "ChessBase"]
[SourceQuality "1"]
[TimeControl "40/5400+30:1800+30"]

1. Nf3 {[%emt 0:00:00]} c5 {[%emt 0:00:00]} 2. c4 {[%emt 0:00:00]} Nc6 {[%emt 0:00:37]} 3. g3 {[%emt 0:00:00]} g6 {[%emt 0:02:02]} 4. Nc3 {[%emt 0:00:15]} Bg7 {[%emt 0:02:09]} 5. Bg2 {[%emt 0:01:14]} f5 {[%emt 0:03:02]} 6. d3 {[%emt 0:00:34]} Nf6 {[%emt 0:01:15]} 7. O-O {[%emt 0:03:37]} O-O {[%emt 0:00:42]} 8. Bd2 {[%emt 0:02:53]} d6 {[%emt 0:04:52]} 9. Rb1 {[%emt 0:05:08]} e5 {[%emt 0:08:55]} 10. Ne1 {[%emt 0:02:47]} Be6 {[%emt 0:04:23]} 11. Nc2 {[%emt 0:02:56]} d5 {[%emt 0:01:56]} 12. cxd5 {[%emt 0:00:05]} Nxd5 {[%emt 0:00:10]} 13. Ne3 {[%emt 0:08:43]} Nde7 {[%emt 0:04:42]} 14. a3 {[%emt 0:10:43]} Rb8 {[%emt 0:07:11]} 15. Na4 {[%emt 0:08:58]} b6 {[%emt 0:04:45]} 16. b4 {[%emt 0:01:53]} cxb4 {[%emt 0:00:28]} 17. axb4 {[%emt 0:01:15]} Nd4 {[%emt 0:01:57]} 18. b5 {[%emt 0:06:57]} f4 {[%emt 0:07:35]} 19. Nc4 {[%emt 0:03:54]} Bd5 {[%emt 0:00:50]} 20. f3 {[%emt 0:11:01]} Nef5 {[%emt 0:06:36]} 21. gxf4 {[%emt 0:10:48]} exf4 {[%emt 0:00:13]} 22. Bxf4 {[%emt 0:03:06]} Nxe2+ {[%emt 0:00:28]} 23. Qxe2 {[%emt 0:01:40]} Nd4 {[%emt 0:00:06]} 24. Qe3 {[%emt 0:05:13]} Rxf4 {[%emt 0:00:41]} 25. Nc3 {[%emt 0:01:44]} Rh4 {[%emt 0:04:00]} 26. Ne5 {[%emt 0:06:09]} Nf5 {[%emt 0:02:14]} 27. Qe1 {[%emt 0:00:44]} Bb7 {[%emt 0:10:16]} 28. Nc6 {[%emt 0:01:02]} Bxc6 {[%emt 0:00:35]} 29. bxc6 {[%emt 0:00:34]} Qd4+ {[%emt 0:01:16]} 30. Rf2 {[%emt 0:00:19]} Qxc3 {[%emt 0:00:32]} 31. Qe6+ {[%emt 0:00:30]} Kh8 {[%emt 0:00:06]} 32. Qd7 {[%emt 0:00:32]} Bd4 {[%emt 0:04:15]} 33. c7 {[%emt 0:00:33]} Bxf2+ {[%emt 0:01:06]} 34. Kxf2 {[%emt 0:00:04]} Rg8 {[%emt 0:00:43]} 35. Re1 {[%emt 0:00:55]} Rxh2 {[%emt 0:01:49]} 36. Re2 {[%emt 0:00:38]} Qc5+ {[%emt 0:01:30]} 37. Ke1 {[%emt 0:00:26]} Qg1+ {[%emt 0:01:59]} 38. Bf1 {[%emt 0:00:34]} Rxe2+ {[%emt 0:03:37]} 39. Kxe2 {[%emt 0:00:06]} Ng3+ {[%emt 0:01:52]} 40. Kd2 {[%emt 0:00:00]} Nxf1+ {[%emt 0:00:00]} 41. Kd1 {[%emt 0:00:27]} Qf2 {[%emt 0:00:38]} 0-1

[Event "IIFL Wealth 4th Mumbai Open"]
[Site "Mumbai"]
[Date "2019.01.01"]
[Round "3"]
[White "Sheikh Jahan"]
[Black "Shivasubramanian, R."]
[Result "0-1"]
[ECO "C12"]
[WhiteElo "1526"]
[BlackElo "1738"]
[Annotator "NA RC"]
[PlyCount "94"]
[EventDate "2018.12.30"]
[EventType "swiss"]
[EventCountry "IND"]
[SourceTitle "playchess.com"]
[Source "ChessBase"]
[SourceQuality "1"]
[TimeControl "40/5400+30:1800+30"]

1. e4 e6 2. d4 d5 3. Nc3 Nf6 4. Bg5 Bb4 5. exd5 Qxd5 6. Bxf6 gxf6 7. Qd3 Nc6 8. Nge2 Bxc3+ 9. Qxc3 e5 10. dxe5 fxe5 11. f3 Bf5 12. Ng3 Bg6 13. Bc4 Qd4 14. Qxd4 Nxd4 15. Bb3 Bxc2 16. Kf2 Bxb3 17. axb3 Nxb3 18. Ra3 Nd4 19. Re3 f6 20. f4 O-O 21. Re4 Ne6 22. fxe5 fxe5+ 23. Ke3 Nf4 24. Rd1 Nxg2+ 25. Ke2 Nf4+ 26. Ke3 Rae8 27. Rd7 Rf7 28. Rd1 Kg7 29. h4 Re6 30. h5 Rb6 31. Rg1 Rxb2 32. Rxe5 Ng2+ 33. Kd4 Kf8 34. h6 Nh4 35. Kc3 Ng2 36. Kd4 Nh4 37. Kc3 Rb6 38. Rge1 Rb2 39. Rg1 Rb6 40. Rge1 Rf3+ 41. Kc4 Rxg3 42. Re8+ Kf7 43. R1e7+ Kf6 44. Rxh7 Rc6+ 45. Kd4 Nf5+ 46. Kd5 Rd3+ 47. Ke4 Re3+ 0-1